bitfinex/quotes_ETHUSD_20250424
["timestamp","ask_amount","ask_price","bid_price","bid_amount"]
[1745526110566,6.42860228,1763.7,1763.4,6.49304355]
[1745526110567,3.0,1763.7,1763.4,6.49304355]
[1745526110774,8.13268208,1763.8,1763.4,0.8224]
[1745526110775,0.41526374,1763.8,1763.4,0.8224]
[1745526110951,8.66905128,1764.0,1763.6,6.4923342]
[1745526111147,2.04767138,1764.0,1763.6,6.28530304]
[1745526111353,7.71612426,1764.2,1763.8,5.66936502]
[1745526111540,3.0,1764.1,1763.8,5.66936502]
[1745526112035,10.71635379,1764.1,1763.8,5.66936502]
[1745526112238,7.71662057,1764.0,1763.7,6.48861602]
[1745526112439,7.71662057,1764.0,1763.7,8.25077317]
[1745526113378,2.04767138,1763.9,1763.7,8.25077317]
[1745526113755,2.04767138,1763.9,1763.7,13.92046589]
[1745526113953,2.48295365,1764.0,1763.8,5.6694425]
[1745526114149,5.04767138,1764.1,1763.8,5.6694425]
[1745526114354,5.04767138,1764.1,1763.8,7.06143894]
[1745526114567,10.7163316,1764.1,1763.8,1.39201924]
[1745526114774,2.04767138,1764.0,1763.8,1.39201924]
[1745526115073,3.0,1764.1,1763.8,1.39201924]
[1745526115074,10.71630657,1764.1,1763.8,7.06149996]
[1745526116254,7.71663874,1764.0,1763.7,0.8189]
[1745526116441,2.46339804,1764.0,1763.7,6.48868326]
[1745526116645,2.46339804,1764.0,1763.8,0.53036776]
[1745526116962,0.41572666,1764.0,1763.8,6.19989602]
[1745526117166,10.71631098,1764.1,1763.8,6.19989602]
[1745526117363,10.71631098,1764.1,1763.9,0.53036776]
[1745526117559,5.04767138,1764.1,1763.9,0.53036776]
[1745526117767,5.04767138,1764.1,1763.9,1.36176776]
[1745526117978,5.04767138,1764.1,1763.9,0.8314]
[1745526118766,2.04767138,1764.4,1764.1,5.66861289]
[1745526118975,3.0,1764.4,1764.1,0.7685]
[1745526119184,10.7153207,1764.4,1764.1,6.43695308]
[1745526119474,5.04767138,1764.4,1764.2,0.53007642]
[1745526119677,2.04767138,1764.5,1764.2,6.1983508]
[1745526119879,2.04767138,1764.5,1764.2,5.66827438]
[1745526120059,5.04767138,1764.5,1764.2,5.66827438]
[1745526120260,5.04767138,1764.5,1764.2,5.66811031]
[1745526120460,5.4730643,1764.5,1764.2,5.66811031]
[1745526120759,11.14041628,1764.5,1764.3,0.52970332]
[1745526121167,2.04767138,1764.4,1764.1,12.10536115]
[1745526121352,3.42539292,1764.5,1764.3,5.66778325]
[1745526121679,3.42539292,1764.5,1764.3,6.48438325]
[1745526121880,5.66656569,1764.8,1764.4,16.6697175]
[1745526122084,2.04767138,1764.8,1764.5,0.87326787]
[1745526122287,2.04767138,1765.0,1764.5,0.8166]
[1745526122585,5.04767138,1765.0,1764.8,0.7598]
[1745526123386,10.7134198,1765.0,1764.8,0.7598]
[1745526123557,5.04767138,1764.9,1764.8,0.7598]
[1745526124456,5.04767138,1764.9,1764.8,5.5648]
[1745526125256,3.0,1764.9,1764.8,4.805]
[1745526125458,8.6660434,1764.9,1764.8,4.805]
[1745526125669,10.9901924,1764.9,1764.8,4.805]
[1745526126781,9.4495434,1764.9,1764.8,4.805]
[1745526127194,3.0,1764.9,1764.8,4.805]
[1745526129496,8.6660434,1764.9,1764.8,4.805]
[1745526130596,3.0,1764.9,1764.8,4.805]
[1745526130799,3.0,1764.9,1764.8,11.24536446]
[1745526130995,3.0,1764.9,1764.8,12.36990091]
[1745526132334,3.0,1764.9,1764.8,6.70353645]
[1745526134334,6.08035095,1765.1,1764.8,6.70353645]
[1745526134537,0.41476554,1765.1,1764.9,5.66587738]
[1745526134738,4.07469822,1765.2,1764.9,5.66587738]
[1745526134925,4.07469822,1765.2,1764.9,7.46944969]
[1745526135425,4.5073611,1765.2,1764.9,7.46944969]
[1745526135803,5.66560467,1765.1,1764.9,1.80357231]
[1745526136020,5.66560467,1765.1,1764.8,6.70353645]
[1745526139447,5.66560467,1765.1,1764.8,12.36989776]
[1745526139794,5.66560467,1765.1,1764.8,6.70353645]
[1745526142631,5.66560467,1765.1,1764.8,12.36989742]
[1745526143565,5.66560467,1765.1,1764.8,6.70353645]
[1745526144565,5.66560467,1765.1,1764.8,5.579]
[1745526145267,5.66560467,1765.1,1764.8,11.24535928]
[1745526145834,4.5073611,1765.2,1764.9,5.66603747]
[1745526146030,7.52515848,1765.6,1765.2,6.45714888]
[1745526146265,7.52515848,1765.6,1765.2,18.13734742]
[1745526146572,3.0,1765.5,1765.2,11.26006859]
[1745526146868,3.0,1765.5,1765.3,5.66466455]
[1745526147078,3.0,1765.5,1765.2,16.92497899]
[1745526147338,3.0,1765.5,1765.2,11.26006859]
[1745526148080,3.0,1765.5,1765.2,16.92494734]
[1745526148382,7.15571166,1765.6,1765.3,7.35725354]
[1745526149281,6.48210092,1765.8,1765.4,5.66439136]
[1745526149459,3.0,1765.7,1765.4,6.47348227]
[1745526149660,3.0,1765.7,1765.4,6.47344129]
[1745526149954,3.0,1765.7,1765.4,12.13766124]
[1745526150167,3.0,1765.7,1765.5,1.21376612]
[1745526150380,3.0,1765.7,1765.6,4.8]
[1745526152203,1.07469822,1765.8,1765.6,4.8]
[1745526152495,4.07469822,1765.8,1765.7,0.8063]
[1745526152798,3.0,1765.8,1765.7,0.8063]
[1745526153778,2.96631335,1765.8,1765.7,1.93330897]
[1745526154386,1.07469822,1766.0,1765.7,7.5967448]
[1745526154896,7.53120453,1766.2,1765.8,5.66303514]
[1745526155096,7.53120453,1766.2,1765.7,1.93330897]
[1745526155398,7.53120453,1766.2,1765.8,11.32586638]
[1745526155697,7.53120453,1766.2,1765.8,5.66290221]
[1745526155865,5.66223948,1766.1,1765.7,6.46960886]
[1745526156070,5.66283833,1765.9,1765.7,0.8063]
[1745526156272,6.73732625,1766.0,1765.7,0.8063]
[1745526156497,12.40014624,1766.0,1765.6,10.46361426]
[1745526156696,12.40014624,1766.0,1765.6,12.19774452]
[1745526157403,6.73732625,1766.0,1765.6,12.19774452]
[1745526157695,12.4000983,1766.0,1765.6,12.19774452]
[1745526158303,13.2264983,1766.0,1765.6,12.19774452]
[1745526158480,5.66286643,1765.9,1765.6,12.19774452]
[1745526159398,7.56372625,1766.0,1765.7,1.21977445]
[1745526160200,13.22649738,1766.0,1765.7,1.21977445]
[1745526160414,6.73732625,1766.0,1765.7,6.8831036]
[1745526160911,6.73732625,1766.0,1765.7,1.21977445]
[1745526161508,6.73732625,1766.0,1765.7,6.88322873]
[1745526161711,7.55787565,1766.1,1765.8,0.68832287]
[1745526162100,13.22034061,1766.1,1765.8,0.68832287]
[1745526162408,5.66252033,1766.0,1765.8,0.68832287]
[1745526164607,5.66252033,1766.0,1765.7,6.88306865]
[1745526164974,5.66252033,1766.0,1765.7,1.21977445]
[1745526165176,5.66252033,1766.0,1765.7,6.88322715]
[1745526166203,7.55782718,1766.1,1765.7,12.54649568]
[1745526166405,13.22028021,1766.1,1765.7,7.67504298]
[1745526166630,13.22033501,1766.1,1765.7,7.67504298]
[1745526166908,7.55782718,1766.1,1765.7,7.67504298]
[1745526167078,13.22030198,1766.1,1765.7,7.67504298]
[1745526167282,5.66258638,1766.0,1765.7,7.67504298]
[1745526167586,7.55782718,1766.1,1765.8,4.798]
[1745526167886,13.22029598,1766.1,1765.8,4.798]
[1745526168085,5.66252449,1766.0,1765.8,4.798]
[1745526168519,7.55782718,1766.1,1765.8,6.0453043]
[1745526168808,7.55782718,1766.1,1765.8,11.70839578]
[1745526169099,13.22026131,1766.1,1765.8,6.0453043]
[1745526169305,5.66252138,1766.0,1765.8,6.0453043]
[1745526170126,7.55782718,1766.1,1765.8,6.0453043]
[1745526170606,13.22028953,1766.1,1765.8,6.0453043]
[1745526170906,13.22030245,1766.1,1765.8,6.0453043]
[1745526171113,7.55782718,1766.1,1765.8,6.0453043]
[1745526171679,4.89549822,1766.1,1765.8,4.798]
[1745526171920,5.66274303,1766.0,1765.8,4.798]
[1745526175092,5.66328691,1765.8,1765.7,4.798]
[1745526180604,9.73770319,1765.9,1765.7,4.798]
[1745526181012,15.40080161,1765.9,1765.7,4.798]
[1745526181184,9.73770319,1765.9,1765.7,4.798]
[1745526181517,4.07469822,1765.9,1765.7,4.798]
[1745526182009,9.73756449,1765.9,1765.7,4.798]
[1745526182378,4.07469822,1765.9,1765.7,4.798]
[1745526182583,9.73755524,1765.9,1765.7,4.798]
[1745526184832,15.40065887,1765.9,1765.7,4.798]
[1745526185318,2.04501381,1765.8,1765.7,4.798]
[1745526186011,7.70816932,1765.8,1765.7,0.52999643]
[1745526186310,7.70816932,1765.8,1765.6,4.796]
[1745526186311,5.66347624,1765.7,1765.6,4.796]
[1745526186535,5.66392347,1765.6,1765.3,23.44297611]
[1745526186713,7.70849005,1765.7,1765.5,4.796]
[1745526187087,2.04501381,1765.7,1765.6,0.53014624]
[1745526187287,6.73712923,1765.8,1765.6,0.53014624]
[1745526187587,6.73712923,1765.8,1765.5,4.796]
[1745526188200,5.66356476,1765.7,1765.5,4.796]
[1745526188386,6.73712923,1765.8,1765.5,5.84204169]
[1745526188791,5.66348127,1765.7,1765.5,5.84204169]
[1745526189823,5.66348127,1765.7,1765.5,4.796]
[1745526190820,5.66348127,1765.7,1765.4,5.66423281]
[1745526191017,6.47128127,1765.7,1765.5,5.32581721]
[1745526191723,6.47128127,1765.7,1765.5,4.796]
[1745526192530,4.073814,1765.6,1765.3,16.996]
[1745526192697,5.66441548,1765.5,1765.4,4.797]
[1745526195428,6.09263498,1765.5,1765.4,4.797]
[1745526203835,6.87093498,1765.5,1765.4,4.797]
[1745526205111,6.09263498,1765.5,1765.4,4.797]
[1745526207537,0.4282195,1765.5,1765.4,4.797]
[1745526207732,9.73775951,1765.6,1765.4,4.797]
[1745526208408,9.73784119,1765.6,1765.4,4.797]
[1745526208820,8.66402719,1765.6,1765.4,4.797]
[1745526210745,8.66402719,1765.6,1765.4,4.797]
[1745526210945,14.3280564,1765.6,1765.4,4.797]
[1745526211245,8.66402719,1765.6,1765.4,4.797]
[1745526212840,9.08905479,1765.6,1765.4,4.797]
[1745526213547,3.4250276,1765.6,1765.4,4.797]
[1745526213745,3.0,1765.6,1765.4,12.14952694]
[1745526214043,0.7613,1765.9,1765.6,5.66371121]
[1745526214044,7.70842195,1765.9,1765.6,5.66371121]
[1745526214245,13.37071104,1766.0,1765.7,0.8281]
[1745526214546,2.04543632,1766.0,1765.8,4.795]
[1745526214869,7.70779258,1766.1,1765.8,10.45806155]
[1745526215032,0.43339808,1766.0,1765.8,10.45806155]
[1745526215233,0.4341202,1766.0,1765.8,12.15300587]
[1745526215449,5.66235626,1766.1,1765.8,12.15300587]
[1745526215614,5.6620594,1766.2,1765.9,0.7604]
[1745526215819,6.73477595,1766.4,1766.0,5.6622814]
[1745526216023,6.73469929,1766.4,1766.2,0.7604]
[1745526216324,6.73469929,1766.4,1766.2,5.5554]
[1745526217549,4.07332829,1766.4,1766.2,5.5554]
[1745526217759,5.66112377,1766.5,1766.2,6.67714829]
[1745526217961,5.66141408,1766.4,1766.2,6.67714829]
[1745526218120,5.66141408,1766.4,1766.2,5.5554]
[1745526219743,3.0,1766.4,1766.2,5.5554]
[1745526219948,4.07332829,1766.5,1766.2,11.21702584]
[1745526220352,9.73428204,1766.5,1766.2,11.21702584]
[1745526220649,3.0,1766.5,1766.3,1.12170258]
[1745526221027,3.0,1766.5,1766.3,6.78313055]
[1745526221265,3.0,1766.6,1766.3,6.78313055]
[1745526221463,3.0,1766.6,1766.3,12.4445677]
[1745526221621,3.0,1766.6,1766.4,0.7767]
[1745526221820,3.42227568,1766.6,1766.4,0.7767]
[1745526222723,9.08296612,1766.6,1766.4,1.53267226]
[1745526222957,9.08296612,1766.6,1766.4,0.7767]
[1745526223957,3.0,1766.6,1766.4,0.7767]
[1745526224457,4.07332829,1766.6,1766.4,0.7767]
[1745526225032,3.0,1766.6,1766.4,0.7767]
[1745526225351,5.65979489,1766.9,1766.5,5.66071737]
[1745526225538,6.47634443,1767.0,1766.4,6.43777296]
[1745526225539,3.0,1766.7,1766.6,5.35907174]
[1745526230343,3.0,1766.8,1766.6,5.35907174]
[1745526231095,3.0,1766.8,1766.6,6.13287174]
[1745526231574,8.66012104,1766.8,1766.6,6.13287174]
[1745526237154,8.66012104,1766.8,1766.6,5.35907174]
[1745526237354,14.32037865,1766.8,1766.6,5.35907174]
[1745526237782,8.66012104,1766.8,1766.6,5.35907174]
[1745526238781,14.32038411,1766.8,1766.6,5.35907174]
[1745526239781,8.66012104,1766.8,1766.6,5.35907174]
[1745526239945,8.66012104,1766.8,1766.7,0.53590717]
[1745526240150,14.32033059,1766.8,1766.6,4.793]
[1745526240797,6.73359885,1766.7,1766.6,4.793]
[1745526243388,1.07332829,1766.7,1766.6,4.793]
[1745526243885,6.73359885,1766.7,1766.6,4.793]
[1745526245359,7.70340361,1766.7,1766.6,4.793]
[1745526246888,7.70340361,1766.7,1766.5,4.79]
[1745526247491,2.04313305,1766.7,1766.5,4.79]
[1745526248591,7.70342184,1766.7,1766.5,4.79]
[1745526249989,2.04313305,1766.7,1766.5,4.79]
[1745526251291,2.04313305,1766.7,1766.5,10.45089414]
[1745526251488,2.04313305,1766.7,1766.5,12.06208794]
[1745526251792,2.04313305,1766.7,1766.6,5.5749]
[1745526252200,2.04313305,1766.7,1766.6,6.1042026]
[1745526252763,2.04313305,1766.7,1766.6,11.76479356]
[1745526252962,5.04313305,1766.8,1766.6,11.76479356]
[1745526253188,5.04313305,1766.8,1766.7,1.17647936]
[1745526253889,5.04313305,1766.8,1766.6,5.5749]
[1745526254166,5.04313305,1766.8,1766.6,11.23545236]
[1745526255504,4.25103296,1766.8,1766.7,0.52942381]
[1745526255703,2.04313305,1766.8,1766.7,0.52942381]
[1745526256868,7.70308324,1766.8,1766.6,5.5749]
[1745526257068,7.70308324,1766.8,1766.6,6.85957868]
[1745526257268,2.04313305,1766.7,1766.6,6.07467868]
[1745526257467,2.04313305,1766.7,1766.6,4.79]
[1745526257869,2.04313305,1766.7,1766.6,5.31943195]
[1745526261773,7.70340361,1766.7,1766.6,5.31943195]
[1745526264306,2.04313305,1766.7,1766.6,5.31943195]
[1745526264699,7.70340361,1766.7,1766.6,5.31943195]
[1745526265003,2.04313305,1766.7,1766.6,4.79]
[1745526265709,2.04313305,1766.7,1766.6,5.31939149]
[1745526267000,5.65995019,1766.8,1766.6,5.31939149]
[1745526267325,2.04313305,1766.7,1766.6,5.31939149]
[1745526267606,2.04313305,1766.7,1766.6,4.79]
[1745526268309,2.04313305,1766.7,1766.6,5.31944502]
[1745526273509,2.04313305,1766.7,1766.6,4.79]
[1745526273815,2.04313305,1766.7,1766.6,5.31962068]
[1745526274995,7.70340361,1766.7,1766.6,5.31962068]
[1745526275317,2.04313305,1766.7,1766.6,5.31962068]
[1745526288535,2.04313305,1766.7,1766.6,4.79]
[1745526291153,2.04313305,1766.7,1766.6,5.31944516]
[1745526297772,7.70340361,1766.7,1766.6,5.31944516]
[1745526297984,2.04313305,1766.7,1766.6,5.31944516]
[1745526298375,7.70340361,1766.7,1766.6,5.31944516]
[1745526298774,2.04313305,1766.7,1766.6,5.31944516]
[1745526307047,7.70340361,1766.7,1766.6,5.31944516]
[1745526310172,2.04313305,1766.7,1766.6,5.31944516]
[1745526315213,2.04313305,1766.7,1766.6,0.52944516]
[1745526317509,7.70340361,1766.7,1766.6,0.52944516]
[1745526317685,2.04313305,1766.7,1766.6,0.52944516]
[1745526322419,9.84885167,1766.7,1766.6,0.52944516]
[1745526322620,14.89198472,1766.7,1766.6,0.52944516]
[1745526322991,14.89198472,1766.7,1766.6,1e-08]
[1745526323283,5.66219353,1766.1,1766.0,21.77]
[1745526323679,5.66219353,1766.1,1766.0,4.786]
[1745526325106,7.70532658,1766.1,1766.0,4.786]
[1745526330037,7.70532658,1766.1,1765.8,0.7846]
[1745526330224,2.04313305,1765.9,1765.8,4.787]
[1745526330538,5.66333783,1765.8,1765.6,4.787]
[1745526330849,2.04313305,1765.7,1765.6,4.787]
[1745526331745,7.70647088,1765.8,1765.6,4.787]
[1745526331939,2.04313305,1765.7,1765.5,6.45700118]
[1745526332244,2.04313305,1765.7,1765.5,12.45312663]
[1745526335150,7.70647088,1765.8,1765.5,12.45312663]
[1745526337163,2.04313305,1765.6,1765.5,5.99612545]
[1745526337368,2.04313305,1765.6,1765.5,4.784]
[1745526337369,7.70693005,1765.6,1765.5,4.784]
[1745526337571,2.04313305,1765.6,1765.5,4.784]
[1745526337778,2.04313305,1765.8,1765.5,4.784]
[1745526337923,2.04313305,1765.9,1765.6,6.55207861]
[1745526338128,2.04313305,1766.0,1765.7,5.66326599]
[1745526338367,2.04313305,1766.0,1765.8,0.8318]
[1745526339836,7.70570172,1766.0,1765.8,0.8318]
[1745526340036,7.70568056,1766.0,1765.8,0.8318]
[1745526341776,2.04313305,1765.9,1765.8,0.8318]
[1745526343185,2.04313305,1765.9,1765.7,0.8319]
[1745526343186,7.70605784,1765.9,1765.7,0.8319]
[1745526343542,2.04313305,1765.9,1765.7,5.6169]
[1745526344796,7.70601223,1765.9,1765.7,5.6169]
[1745526345381,7.70601223,1765.9,1765.7,4.785]
[1745526345689,2.04313305,1765.8,1765.7,4.785]
[1745526348262,7.70601223,1765.9,1765.7,4.785]
[1745526348883,5.66263068,1766.0,1765.7,10.44838768]
[1745526349067,2.04313305,1765.9,1765.8,0.7813]
[1745526349860,2.04313305,1765.9,1765.8,6.44445551]
[1745526350073,2.04313305,1765.9,1765.8,0.7813]
[1745526350281,2.04313305,1765.9,1765.8,6.44445551]
[1745526351600,2.04313305,1765.9,1765.8,0.7813]
[1745526352481,2.04313305,1765.9,1765.8,6.97262192]
[1745526353905,2.04313305,1766.1,1765.9,5.66283481]
[1745526354092,8.12340094,1766.2,1765.8,6.97238712]
[1745526354298,7.70518013,1766.2,1765.8,12.63532049]
[1745526354466,5.66134658,1766.4,1766.1,5.66201707]
[1745526354665,5.66134658,1766.4,1766.0,5.66251415]
[1745526354666,0.7804,1766.5,1766.2,5.66187294]
[1745526354870,2.04313305,1766.4,1766.2,6.42667294]
[1745526355283,2.04313305,1766.4,1766.2,8.11382092]
[1745526355898,2.04313305,1766.3,1766.2,2.45216992]
[1745526357086,2.04313305,1766.3,1766.2,0.7648]
[1745526357674,2.04313305,1766.3,1766.2,6.42667294]
[1745526357811,2.04313305,1766.5,1766.2,12.08809483]
[1745526358345,2.04313305,1766.5,1766.2,12.08810737]
[1745526358649,2.04313305,1766.5,1766.2,8.11375541]
[1745526358835,2.04313305,1766.5,1766.3,5.66151751]
[1745526359034,2.04313305,1766.4,1766.3,5.66151751]
[1745526359432,2.04313305,1766.6,1766.4,5.66123188]
[1745526359636,2.04313305,1766.7,1766.4,6.52013758]
[1745526359833,2.04313305,1766.6,1766.4,6.52013758]
[1745526360031,2.04313305,1766.6,1766.4,7.73830309]
[1745526360550,2.04313305,1766.6,1766.4,7.68169739]
[1745526361250,2.04313305,1766.6,1766.4,2.02046551]
[1745526361961,2.04313305,1766.6,1766.4,7.68163118]
[1745526363057,2.04313305,1766.6,1766.4,1.21816551]
[1745526363366,2.04313305,1766.5,1766.3,5.66139057]
[1745526364857,2.04313305,1766.5,1766.3,5.66136272]
[1745526365090,2.04313305,1766.5,1766.4,5.66123188]
[1745526365362,2.04313305,1766.5,1766.3,5.66136272]
[1745526367660,2.04313305,1766.5,1766.4,5.66123188]
[1745526367862,2.04313305,1766.5,1766.3,5.66136272]
[1745526368171,2.04313305,1766.5,1766.3,12.70554291]
[1745526368463,2.04313305,1766.5,1766.4,5.66123188]
[1745526368663,2.04313305,1766.6,1766.4,5.66123188]
[1745526370033,2.04313305,1766.6,1766.3,7.04418019]
[1745526370238,6.07575479,1766.7,1766.4,5.66123188]
[1745526370239,2.04313305,1766.5,1766.4,5.66123188]
[1745526370473,2.04313305,1766.5,1766.4,6.93177309]
[1745526370967,2.04313305,1766.6,1766.5,0.7737]
[1745526371173,2.04313305,1766.7,1766.5,0.7737]
[1745526372082,2.04313305,1766.7,1766.5,6.43458721]
[1745526373267,2.04313305,1766.6,1766.5,0.7737]
[1745526373568,2.04313305,1766.6,1766.4,6.93164848]
[1745526377405,2.04313305,1766.6,1766.4,11.71364848]
[1745526377615,2.04313305,1766.6,1766.4,10.44310727]
[1745526378002,2.04313305,1766.6,1766.4,16.10416925]
[1745526379010,2.04313305,1766.6,1766.5,5.6609114]
[1745526380271,2.04313305,1766.6,1766.4,16.10408585]
[1745526381203,2.04313305,1766.6,1766.4,10.44302387]
[1745526381507,2.04313305,1766.5,1766.4,4.782]
[1745526382407,2.04313305,1766.5,1766.4,5.30978065]
[1745526384918,2.04313305,1766.5,1766.4,5.31044299]
[1745526386816,2.04313305,1766.5,1766.4,0.52844299]
[1745526387424,2.04313305,1766.5,1766.4,6.18967487]
[1745526389923,2.04313305,1766.5,1766.4,0.52844299]
[1745526390300,2.33002635,1766.5,1766.4,0.52844299]
[1745526395633,2.04313305,1766.5,1766.4,0.52844299]
[1745526401708,7.70404445,1766.5,1766.4,0.52844299]
[1745526402348,13.36522685,1766.5,1766.3,4.782]
[1745526402535,7.70404445,1766.5,1766.3,4.782]
[1745526402829,2.04313305,1766.4,1766.3,4.782]
[1745526403139,2.04313305,1766.4,1766.3,5.31143606]
[1745526405541,2.04313305,1766.4,1766.3,4.782]
[1745526405752,7.70436493,1766.4,1766.1,0.8225]
[1745526405954,5.66233876,1766.1,1765.8,5.5884]
[1745526406138,7.70547181,1766.1,1765.8,11.25155307]
[1745526406515,7.70547181,1766.1,1765.9,0.52929653]
[1745526406851,7.70547181,1766.1,1766.0,0.52929653]
[1745526407352,7.70547181,1766.1,1765.9,0.52929653]
[1745526407554,2.04313305,1766.0,1765.9,0.52929653]
[1745526407857,7.70547181,1766.1,1765.9,0.52929653]
[1745526408352,2.04313305,1766.1,1765.9,6.19212725]
[1745526408650,2.04313305,1766.1,1765.9,5.66283072]
[1745526409124,7.70527332,1766.2,1765.9,5.66283072]
[1745526409320,2.04313305,1766.2,1765.9,7.35408995]
[1745526409851,7.70509438,1766.2,1765.9,7.35408995]
[1745526410052,7.70509438,1766.2,1765.9,5.66265157]
[1745526410656,8.12960985,1766.2,1765.9,5.66265157]
[1745526415660,8.12960985,1766.2,1766.0,0.52841634]
[1745526416454,8.12960985,1766.2,1765.9,5.66265157]
[1745526417364,8.12960985,1766.2,1766.0,0.52842149]
[1745526417862,8.12960985,1766.2,1765.9,5.66265157]
[1745526419070,2.46764852,1766.2,1765.9,5.66265157]
[1745526420502,8.12953794,1766.2,1765.9,5.66265157]
[1745526420705,2.46764852,1766.2,1765.9,5.66265157]
[1745526420914,2.46764852,1766.2,1765.9,11.32526261]
[1745526421307,0.42451547,1766.2,1766.0,6.46610867]
[1745526421603,2.04313305,1766.3,1766.0,6.46589358]
[1745526421997,2.04313305,1766.3,1766.0,12.128183]
[1745526422402,2.04313305,1766.3,1766.0,6.46588942]
[1745526423013,7.70472982,1766.3,1766.0,6.46588942]
[1745526423605,7.70472982,1766.3,1766.0,0.8036]
[1745526423813,7.70472982,1766.3,1766.0,6.46607988]
[1745526425272,13.79644885,1766.3,1766.0,0.8036]
[1745526426011,8.13461635,1766.3,1766.0,0.8036]
[1745526426212,8.13461635,1766.3,1766.0,6.46610457]
[1745526426376,0.7579,1766.6,1766.0,0.8036]
[1745526426581,6.41795963,1766.8,1766.4,5.66093939]
[1745526426772,2.04313305,1766.9,1766.6,5.66035347]
[1745526426999,7.70277605,1766.9,1766.6,6.43435347]
[1745526427298,2.04313305,1766.9,1766.7,5.66020319]
[1745526427504,2.04313305,1766.9,1766.6,6.43435347]
[1745526428286,7.70279471,1766.9,1766.6,6.43435347]
[1745526428570,7.70279471,1766.9,1766.5,5.66075546]
[1745526428571,13.36268538,1766.9,1766.5,5.66075546]
[1745526428777,2.04313305,1766.7,1766.4,11.25296216]
[1745526428982,8.131377,1766.7,1766.4,5.5919]
[1745526429385,8.131377,1766.7,1766.4,11.25312427]
[1745526429582,8.131377,1766.7,1766.4,4.778]
[1745526430514,8.131377,1766.7,1766.4,10.43920094]
[1745526430716,8.131377,1766.7,1766.4,12.04925444]
[1745526431299,6.08824395,1766.7,1766.4,12.04925444]
[1745526432463,5.66031068,1766.7,1766.4,12.04925444]
[1745526433349,6.08027671,1766.7,1766.4,12.04925444]
[1745526434186,6.08027671,1766.7,1766.4,6.3880535]
[1745526434482,11.7407919,1766.7,1766.4,4.778]
[1745526434787,5.66066626,1766.6,1766.4,4.778]
[1745526434987,7.51811656,1766.6,1766.4,4.778]
[1745526438088,5.6609114,1766.5,1766.4,4.778]
[1745526442547,5.6609114,1766.5,1766.1,5.66197558]
[1745526442755,1.0725503,1766.2,1766.1,4.777]
[1745526442976,6.73442324,1766.2,1766.1,4.777]
[1745526443590,7.54742324,1766.2,1766.1,4.777]
[1745526444311,0.42317618,1766.2,1766.1,10.43919353]
[1745526444484,0.42317618,1766.2,1766.1,11.24229353]
[1745526444827,0.42317618,1766.2,1766.1,12.93275966]
[1745526445093,1.0725503,1766.4,1766.1,12.93275966]
[1745526445313,6.73387332,1766.4,1766.1,7.27056613]
[1745526446018,6.73442324,1766.2,1766.1,4.777]
[1745526447864,5.66271193,1766.0,1765.8,4.778]
[1745526448594,5.66271193,1766.0,1765.7,6.45976305]
[1745526448768,5.66271193,1766.0,1765.8,4.778]
[1745526456318,5.66271193,1766.0,1765.8,4.776]
[1745526459610,5.66283481,1765.9,1765.8,4.776]
[1745526462414,6.73526223,1766.0,1765.8,4.776]
[1745526462596,2.32597845,1766.2,1765.8,12.30119342]
[1745526462919,5.66224481,1766.1,1765.8,12.30119342]
[1745526463284,7.9769485,1766.2,1765.8,12.30119342]
[1745526463486,12.81175819,1766.2,1765.8,12.30108083]
[1745526463697,5.66221924,1766.1,1765.8,12.30108083]
[1745526464213,5.66221924,1766.1,1765.8,6.63813986]
[1745526464721,11.32464459,1766.1,1765.8,6.63813986]
[1745526465820,5.66221924,1766.1,1765.8,6.63813986]
[1745526465987,5.66221924,1766.1,1765.8,12.30120482]
[1745526467183,2.28662775,1766.2,1765.8,12.30120482]
[1745526467387,1.48752775,1766.2,1765.9,5.66273369]
[1745526467587,7.14954242,1766.2,1765.8,12.30115551]
[1745526468022,7.14954242,1766.2,1765.9,1.75859506]
[1745526468184,6.07699212,1766.2,1765.9,0.52847951]
[1745526468529,6.07699212,1766.2,1765.8,12.30108258]
[1745526468822,11.73913615,1766.2,1765.8,12.30108258]
[1745526469114,5.66222721,1766.1,1765.8,12.30108258]
[1745526469320,5.66201467,1766.2,1765.9,0.52868437]
[1745526469523,5.66201467,1766.2,1765.8,12.30108258]
[1745526470023,5.66201467,1766.2,1765.9,0.52868687]
[1745526470525,5.66201467,1766.2,1765.8,11.25714272]
[1745526470719,5.66201467,1766.2,1765.8,12.94918678]
[1745526471096,6.08212197,1766.2,1765.8,12.94918678]
[1745526471424,6.08212197,1766.2,1765.9,0.52896504]
[1745526471926,6.08212197,1766.2,1766.0,0.52896504]
[1745526472103,11.74426723,1766.2,1766.0,0.52896504]
[1745526472303,5.6622762,1766.1,1765.8,5.5942]
[1745526472601,5.6622762,1766.1,1765.8,12.38309455]
[1745526472928,5.6622762,1766.1,1765.9,0.52917604]
[1745526473326,5.6622762,1766.1,1765.8,12.38309455]
[1745526473698,6.08212197,1766.2,1765.8,12.38309455]
[1745526474025,6.08212197,1766.2,1765.9,6.19196837]
[1745526474324,6.08212197,1766.2,1765.9,0.52916977]
[1745526474629,6.08212197,1766.2,1766.0,0.52916977]
[1745526475191,0.4201073,1766.2,1765.9,5.66262043]
[1745526475493,11.32353659,1766.3,1766.0,1.35796204]
[1745526475721,5.66174936,1766.3,1766.0,0.7917]
[1745526475920,0.29517927,1766.4,1766.1,5.66190533]
[1745526476229,5.66062439,1766.6,1766.3,5.66139614]
[1745526476609,5.66062439,1766.6,1766.4,0.52852317]
[1745526477131,5.66062439,1766.6,1766.2,16.89199196]
[1745526477323,5.66062439,1766.6,1766.3,1.6891992]
[1745526477526,5.66105214,1766.5,1766.2,5.5687]
[1745526478025,5.66127697,1766.4,1766.2,5.5687]
[1745526478206,5.66127697,1766.4,1766.2,4.777]
[1745526479201,6.73382727,1766.4,1766.2,4.777]
[1745526479628,12.39530201,1766.4,1766.2,4.777]
[1745526479793,6.73382727,1766.4,1766.2,4.777]
[1745526481241,5.66155239,1766.3,1766.2,4.777]
[1745526486341,6.0802454,1766.7,1766.2,10.43861492]
[1745526486342,6.44034766,1766.6,1766.2,10.43861492]
[1745526486630,5.66069859,1766.6,1766.3,6.44299838]
[1745526486936,5.66069859,1766.6,1766.3,0.7816]
[1745526487328,7.15290844,1766.7,1766.3,0.7816]
[1745526487521,7.15290844,1766.7,1766.3,6.44300764]
[1745526488436,5.66070276,1766.6,1766.3,6.44300764]
[1745526488647,7.15290844,1766.7,1766.3,6.44300764]
[1745526488939,12.81342513,1766.7,1766.3,8.13117931]
[1745526489257,7.15290844,1766.7,1766.3,13.79250231]
[1745526489420,7.15290844,1766.7,1766.3,8.13109467]
[1745526490323,7.15290844,1766.7,1766.4,5.66121998]